Cogmind - Beta 16.1 @@@ ROGUE MODE // 2026.04.23 @ 01:40:05 Player: Dobri Result: Destroyed by S-43 Plague with Heavy Machine Gun Performance ------------- Evolutions (8) 4000 Regions Visited (12) 2400 Robots Destroyed (34) 170 Value Destroyed (1100) 1100 Prototype IDs (6) 120 Alien Tech Used (0) 0 Bonus (185) 185 TOTAL SCORE: 7975 Bonus ------- Pacifist 200 Friendly Fire -15 Cogmind --------- Core Integrity 0/1450 Matter 197/300 Energy 82/100 System Corruption 1% Temperature Cool (0) Movement Core (50) Location -2/Research Parts ------- > --- POWER (3) -------- (None) > --- PROPULSION (7) --- (None) > --- UTILITY (10) ----- (None) > --- WEAPON (3) ------- (None) > --- INVENTORY (5) ---- Deuterium Engine Peak State ------------ > --- POWER ------------ Improved Deuterium Engine Heavy Antimatter Reactor > --- PROPULSION ------- Gyrokinetic Inverter Gyrokinetic Inverter Gyrokinetic Inverter Gyrokinetic Inverter Gyrokinetic Inverter Improved Gyrokinetic Inverter > --- UTILITY ---------- Power Amplifier Advanced Heat Sink Advanced Heat Sink Improved Matter Compressor Precision Matter Filter Advanced Reaction Control System Layered Medium Armor Plating Graphene Brace > --- WEAPON ----------- Compact HERF Cannon Linear Accelerator > --- INVENTORY -------- Deuterium Engine Heavy Particle Gun Disruptor Cannon Railgun [Rating: 115] Favorites ----------- Power Improved Deuterium Engine Engine Improved Deuterium Engine Power Core Light Nuclear Core Reactor Heavy Antimatter Reactor Propulsion Gyrokinetic Inverter Treads Armored Medium Treads Leg Aluminum Leg Hover Unit Gyrokinetic Inverter Flight Unit Cesium-ion Thruster Utility Advanced Heat Sink Device Advanced Heat Sink Storage Small Storage Unit Processor Advanced Visual Processing Unit Protection Layered Medium Armor Plating Weapon Heavy Particle Gun Energy Gun Heavy Particle Gun Energy Cannon Compact HERF Cannon Ballistic Gun Assault Rifle Ballistic Cannon Linear Accelerator Build | -11 -10 -10 -9 -8 -7 -6 -5 -4 -4 -4 -3 -2 ------- Run | Yrd Mat Min Mat Mat Fac Fac Fac Fac Upp Upp Res Res Slots Evolved 16 | . . . 2 2 2 2 2 2 . . 2 2 Power 2 | . . . . . 1 . . 1 . . . . Propulsion 5 | . . . 2 . 1 1 1 . . . . . Utility 8 | . . . . 2 . 1 1 1 . . 2 1 Weapon 1 | . . . . . . . . . . . . 1 Parts Attached 84 | 6 1 . 7 34 1 3 11 10 . . 3 8 Power 13 | 1 . . 2 5 . . 1 3 . . . 1 Engine 6 | 1 . . 2 2 . . 1 . . . . . Core 3 | . . . . 3 . . . . . . . . Reactor 4 | . . . . . . . . 3 . . . 1 Propulsion 24 | 2 . . 1 7 . 1 6 2 . . . 5 Treads 6 | . . . . 1 . . . . . . . 5 Leg 5 | 2 . . 1 2 . . . . . . . . Wheel . | . . . . . . . . . . . . . Hover 9 | . . . . . . 1 6 2 . . . . Flight 4 | . . . . 4 . . . . . . . . Utility 28 | 1 1 . 1 13 1 2 3 4 . . 1 1 Device 18 | . . . . 8 1 2 2 4 . . . 1 Storage 3 | 1 . . . 1 . . . . . . 1 . Processor 3 | . . . . 3 . . . . . . . . Hackware . | . . . . . . . . . . . . . Protection 4 | . 1 . 1 1 . . 1 . . . . . Artifact . | . . . . . . . . . . . . . Weapon 19 | 2 . . 3 9 . . 1 1 . . 2 1 Energy Gun 12 | . . . 2 9 . . . . . . . 1 Energy Cannon 2 | . . . . . . . 1 . . . 1 . Ballistic Gun 4 | 2 . . 1 . . . . 1 . . . . Ballistic Cannon 1 | . . . . . . . . . . . 1 . Launcher . | . . . . . . . . . . . . . Special Weapon . | . . . . . . . . . . . . . Impact Weapon . | . . . . . . . . . . . . . Slashing Weapon . | . . . . . . . . . . . . . Piercing Weapon . | . . . . . . . . . . . . . Special Melee Weapon . | . . . . . . . . . . . . . Unidentified Prototypes 6 | . . . . 1 . 1 1 2 . . 1 . Parts Lost 40 | . . . 1 14 . 1 . . 1 . 2 21 Power 6 | . . . 1 2 . . . . . . . 3 Propulsion 11 | . . . . 3 . 1 . . 1 . 1 5 Utility 13 | . . . . 3 . . . . . . 1 9 Weapon 10 | . . . . 6 . . . . . . . 4 Highest Loss Streak 19 | . . . 1 14 . 1 . . 1 . 1 19 To Critical Strikes . | . . . . . . . . . . . . . Average Backups 3 | 2 2 3 5 3 4 4 4 3 3 3 3 4 Power . | . 1 1 . . . 1 . 1 1 1 1 1 Propulsion . | . . . 1 . 1 . . . . . . . Utility 1 | . . 1 1 1 1 1 2 1 1 1 . . Weapon 1 | 1 1 1 1 1 1 . . . 1 1 1 3 Tool/Special . | . . . . . . . . . . . . . Unused Backups 6 | . . . 4 2 . . . . . . . . Power . | . . . . . . . . . . . . . Propulsion 2 | . . . 2 . . . . . . . . . Utility 1 | . . . . 1 . . . . . . . . Weapon 3 | . . . 2 1 . . . . . . . . Tool/Special . | . . . . . . . . . . . . . Average Slot Usage (%) 81 | . 97 100 80 71 74 70 85 93 90 89 83 51 Engine 6 | . 14 14 10 4 7 6 8 7 5 5 4 2 Reactor 1 | . . . . . . . . 2 5 5 4 3 Leg 6 | . 28 28 26 6 . . . . . . . . Hover 13 | . . . . . . . 28 35 32 31 27 15 Flight 7 | . . . . 16 28 25 5 . . . . . Device 17 | . . . . 12 23 24 23 27 31 31 27 17 Storage 3 | . 14 14 11 2 . . . . . . 3 2 Processor 2 | . . . . 3 7 6 5 3 . . . . Protection 5 | . 11 14 11 7 . . 3 5 5 5 4 2 Energy Gun 5 | . . . 4 13 7 6 5 5 5 5 2 1 Ballistic Gun 6 | . 28 28 16 . . . . 4 5 5 3 . Peak Build Rating 115 | 6 7 7 12 41 39 48 87 109 105 101 115 106 Average Rating 54 | 3 6 7 7 22 36 40 72 99 102 101 107 73 On Entrance 49 | . 6 7 7 12 36 37 40 87 105 101 101 100 Avg Prop Armor Cover (%) 2 | . . . . . . . 1 3 3 . . . Naked Turns 26 | . . . . 1 . . . . . . . 25 Heaviest Build 71 | 12 15 15 23 23 19 20 46 64 57 57 71 60 Greatest Support 135 | 20 20 20 30 30 20 20 56 72 72 72 72 135 Greatest Overweight (x) 6 | . . . . 6 1 1 2 1 . . . 6 Average Overweight (x) . | . . . . . . . . . . . . . Largest Inventory Capacity 8 | 8 8 8 8 8 5 5 5 5 5 5 5 5 Average Capacity 5 | 6 8 8 8 5 5 5 5 5 5 5 5 5 Most Carried 8 | 5 3 3 8 5 5 5 5 5 3 3 5 5 Average Carried 3 | 2 2 3 5 3 4 4 4 3 3 3 3 4 Final Capacity 8 | 8 8 8 8 5 5 5 5 5 5 5 5 5 Final Carried 5 | 2 3 3 5 5 4 5 4 3 3 3 5 1 Class Distribution -------------------- 79% | Mutant 19% | Sprinter Dominant Class ---------------- Mutant | -10/Materials Mutant | -10/Mines Mutant | -9/Materials Mutant | -8/Materials Sprinter | -7/Factory Sprinter | -6/Factory Mutant | -5/Factory Mutant | -4/Factory Mutant | -4/Upper Caves Mutant | -4/Upper Caves Mutant | -3/Research Mutant | -2/Research Resources | -11 -10 -10 -9 -8 -7 -6 -5 -4 -4 -4 -3 -2 ----------- Run | Yrd Mat Min Mat Mat Fac Fac Fac Fac Upp Upp Res Res Matter Collected 1602 | 232 . . 174 394 30 10 190 300 15 . 257 . Remotely . | . . . . . . . . . . . . . Salvage Created 1173 | . . . 174 369 . 47 24 228 27 . 304 . Parts 68 | . . . 15 18 . 1 3 11 2 . 18 . Haulers Intercepted . | . . . . . . . . . . . . . Recyclers Shooed 1 | . . . . . . . . . . . 1 . Parts Field Recycled . | . . . . . . . . . . . . . Retrieved Matter . | . . . . . . . . . . . . . Parts Self-Destructed 2 | . . . . . . . . . 2 . . . Prevented 1 | . . . . . . . . . 1 . . . Parts Restored . | . . . . . . . . . . . . . Kills | -11 -10 -10 -9 -8 -7 -6 -5 -4 -4 -4 -3 -2 ------- Run | Yrd Mat Min Mat Mat Fac Fac Fac Fac Upp Upp Res Res Combat Hostiles Destroyed 23 | . . . 5 7 . 1 . 2 1 . 7 . Guns 21 | . . . 5 7 . 1 . 2 1 . 5 . Cannons 2 | . . . . . . . . . . . 2 . Classes Destroyed 9 | . . . 3 3 . 1 1 1 . . . . Worker 1 | . . . . . . . . 1 . . . . Builder 3 | . . . . 1 . . . 2 . . . . Operator 1 | . . . . . . . 1 . . . . . Watcher 6 | . . . 3 . . . . 2 . . 1 . Swarmer 13 | . . . 4 . . . . 1 1 . 7 . Cutter 1 | . . . . 1 . . . . . . . . Grunt 6 | . . . . 5 . . . 1 . . . . Sentry 2 | . . . 1 1 . . . . . . . . Programmer 1 | . . . . . . 1 . . . . . . Best Kill Streak 4 | . . . 4 4 . 1 1 4 1 . 4 . Combat Bots Only 4 | . . . 4 4 . 1 . 1 1 . 4 . Max Kills in Single Turn 2 | . . . 1 2 . 1 1 1 1 . 2 . Gunslinging 1 | . . . . . . . . . . . 1 . Exploded . | . . . . . . . . . . . . . Melee . | . . . . . . . . . . . . . Uniques/NPCs Destroyed . | . . . . . . . . . . . . . Combat | -11 -10 -10 -9 -8 -7 -6 -5 -4 -4 -4 -3 -2 -------- Run | Yrd Mat Min Mat Mat Fac Fac Fac Fac Upp Upp Res Res Hostile Shots Fired 549 | . . . 27 152 . 15 . 33 13 . 94 215 Missed 206 | . . . 12 47 . 7 . 21 9 . 54 56 Hits 343 | . . . 15 105 . 8 . 12 4 . 40 159 Projectile 343 | . . . 15 105 . 8 . 12 4 . 40 159 AOE 5 | . . . . 2 . . . 3 . . . . Critical Strikes 15 | . . . . 3 . 1 . . . . 1 10 Actively Blocked 7 | . . . . . . . . . . . 1 6 Part Disruptions 2 | . . . . 1 . . . . . . 1 . Damage Taken 6891 | . 35 . 207 1769 11 97 54 318 44 . 774 3582 Core 2229 | . . . 45 467 . 26 17 37 . . 182 1455 Absorbed by Shields 284 | . . . . . . . . 117 17 . 150 . Regen/Repaired (Parts) 24 | . . . . . 24 . . . . . . . Core Remaining (%) 86 | 100 . 100 88 15 100 96 98 . . 96 86 . Volleys Fired 135 | . . . 24 18 . 4 4 31 4 . 33 17 Largest 2 | . . . 2 2 . 2 2 2 2 . 2 2 Hottest 160 | . . . 90 160 . 135 136 90 90 . 148 109 Shots Fired 255 | . . . 49 35 . 6 8 62 8 . 67 20 Gun 227 | . . . 49 35 . 6 4 62 8 . 46 17 Cannon 28 | . . . . . . . 4 . . . 21 3 Launcher . | . . . . . . . . . . . . . Special . | . . . . . . . . . . . . . Kinetic 116 | . . . 43 . . . . 31 4 . 33 5 Thermal 93 | . . . . 14 . 6 4 31 4 . 19 15 Explosive . | . . . . . . . . . . . . . Electromagnetic 46 | . . . 6 21 . . 4 . . . 15 . Robot Hit Streak 15 | . . . 15 5 . 3 2 6 3 . 3 4 Robot Miss Streak 6 | . . . 3 6 . 1 2 4 1 . 6 5 Penetration Max 1 | . . . . . . . . . . . 1 . Secondary Targets 3 | . . . . 2 . . . . . . 1 . Max Gunslinging Chain 1 | . . . . 1 . . . . . . 1 . Shots Hit Robots 136 | . . . 29 28 . 5 3 34 5 . 29 3 Core Hits 78 | . . . 9 30 . 2 3 13 1 . 13 7 Critical Kills 1 | . . . . . . . . 1 . . . . Critical Parts Destroyed 1 | . . . . . . . . 1 . . . . Critical Strikes 6 | . . . 1 . . . . 3 . . 2 . Burn 1 | . . . . . . . . 1 . . . . Destroy 3 | . . . 1 . . . . 2 . . . . Blast 1 | . . . . . . . . . . . 1 . Corrupt 1 | . . . . . . . . . . . 1 . Melee Attacks . | . . . . . . . . . . . . . Impact . | . . . . . . . . . . . . . Slashing . | . . . . . . . . . . . . . Piercing . | . . . . . . . . . . . . . Sneak Attacks . | . . . . . . . . . . . . . Combat Hostiles . | . . . . . . . . . . . . . Follow-up Attacks . | . . . . . . . . . . . . . Damage Inflicted 3380 | . . . 387 656 . 122 177 815 104 . 924 195 Guns 2599 | . . . 387 480 . 122 19 766 104 . 538 183 Cannons 423 | . . . . . . . 37 . . . 386 . Explosions 297 | . . . . 176 . . 121 . . . . . Melee . | . . . . . . . . . . . . . Ramming 61 | . . . . . . . . 49 . . . 12 Kinetic 1236 | . . . 339 . . . . 440 28 . 429 . Thermal 1439 | . . . . 399 . 122 140 326 76 . 193 183 Explosive . | . . . . . . . . . . . . . Electromagnetic 644 | . . . 48 257 . . 37 . . . 302 . Impact . | . . . . . . . . . . . . . Slashing . | . . . . . . . . . . . . . Piercing . | . . . . . . . . . . . . . Highest Corruption 3 | . . . 3 . . . . . . . 3 1 Average Corruption 2 | . . . 2 . . . . . . . 2 1 Corruption Purged . | . . . . . . . . . . . . . Corruption Blocked . | . . . . . . . . . . . . . Effects 9 | . . . 7 . . . . . . . 1 1 Message Errors 1 | . . . 1 . . . . . . . . . Matter Fused 2 | . . . 1 . . . . . . . . 1 Energy Discharges 2 | . . . 2 . . . . . . . . . Data Loss (minor) 1 | . . . 1 . . . . . . . . . Data Loss (major) 1 | . . . 1 . . . . . . . . . Misfires 2 | . . . 1 . . . . . . . 1 . Overload Shots . | . . . . . . . . . . . . . Overflow Damage 42 | . . . . . . . . 27 . . 15 . Projectiles 15 | . . . . . . . . . . . 15 . Explosions . | . . . . . . . . . . . . . Melee 27 | . . . . . . . . 27 . . . . Knockbacks 2 | . . . . . . . . . . . 2 . Impact . | . . . . . . . . . . . . . Kinetic 2 | . . . . . . . . . . . 2 . Secondary . | . . . . . . . . . . . . . Self-Inflicted Damage 78 | . . . . 13 . . 35 24 . . . 6 Shots 2 | . . . . 1 . . 1 . . . . . Rammed 5 | . . . . . . . . 1 . . . 4 Targets Rammed 5 | . . . . . . . . 1 . . . 4 Kicked . | . . . . . . . . . . . . . Crushed . | . . . . . . . . . . . . . Highest Temperature 294 | . . . 60 189 . . 87 294 30 6 204 205 Average Temperature 77 | . . . 27 70 . . 52 104 25 6 78 70 Received Heat Transfer 1661 | . . . 45 936 6 18 9 17 . . 18 612 Siege Activations . | . . . . . . . . . . . . . Martial Activations . | . . . . . . . . . . . . . Shielding Activations . | . . . . . . . . . . . . . Robots Disrupted . | . . . . . . . . . . . . . Combat Hostiles . | . . . . . . . . . . . . . Robots Corrupted 1 | . . . . . . . . 1 . . . . Combat Hostiles . | . . . . . . . . . . . . . Parts Fried 4 | . . . . . . . . 2 . . 2 . Impact Corruptions 2 | . . . . . . . . 2 . . . . Robots Melted . | . . . . . . . . . . . . . Combat Hostiles . | . . . . . . . . . . . . . Parts Melted 3 | . . . . . . . . 2 . . 1 . Heat Transferred 2434 | . . . . 706 . 198 87 703 148 . 370 222 Parts Sabotaged . | . . . . . . . . . . . . . Parts Stolen . | . . . . . . . . . . . . . Parts Stripped . | . . . . . . . . . . . . . Power Chain Reactions 2 | . . . . 1 . . 1 . . . . . Alert | -11 -10 -10 -9 -8 -7 -6 -5 -4 -4 -4 -3 -2 ------- Run | Yrd Mat Min Mat Mat Fac Fac Fac Fac Upp Upp Res Res Maximum Alert Level . | . . . . . . . . . . . . . Low Security (%) 100 | 100 100 100 100 100 100 100 100 100 . . 100 100 Level 1 . | . . . . . . . . . . . . . Level 2 . | . . . . . . . . . . . . . Level 3 . | . . . . . . . . . . . . . Level 4 . | . . . . . . . . . . . . . Level 5 . | . . . . . . . . . . . . . High Security . | . . . . . . . . . . . . . Max Security . | . . . . . . . . . . . . . Peak Influence 140 | . . . 95 140 3 30 15 52 . . 118 65 Initial 31 | . . . . 11 2 . 2 . . . . 31 Average 18 | . . . 31 39 . 1 1 10 . . 40 14 Influence Increases 1142 | . . . 201 371 3 30 30 163 50 . 204 90 Destroy 0b10 Robot/C 460 | . . . 100 140 . 20 . 40 20 . 140 . Destroy 0b10 Robot/NC 55 | . . . 15 5 . . 5 25 . . 5 . Destroy Leader 112 | . . . 26 40 . 10 . 4 . . 32 . Successful Hack 7 | . . . . 4 3 . . . . . . . Disable Machine 15 | . . . . . . . . 15 . . . . Destroy Structure 43 | . . . . 2 . . 10 4 . . 12 15 Partial Spotted 45 | . . . . . . . . 30 . . 15 . Lose Combat Pursuer 405 | . . . 60 180 . . 15 45 30 . . 75 Influence Decreases 1108 | . . . 174 392 9 24 36 127 86 . 148 112 Entered New Map 63 | . . . . 16 4 . 4 . 14 . . 25 Time Decay 875 | . . . 164 259 5 24 32 127 72 . 128 64 Lost Part 170 | . . . 10 117 . . . . . . 20 23 Squads Dispatched 17 | . . . . 2 2 2 1 5 . . 4 1 Investigation 3 | . . . . . 1 . . 1 . . . 1 Extermination 5 | . . . . . 1 1 . 2 . . 1 . Reinforcement 6 | . . . . 2 . 1 1 2 . . . . Assault . | . . . . . . . . . . . . . Garrison 3 | . . . . . . . . . . . 3 . Intercept . | . . . . . . . . . . . . . Searches Triggered . | . . . . . . . . . . . . . Construction Impeded . | . . . . . . . . . . . . . Haulers Reinforced 2 | . . . . . . . 1 1 . . . . Active Scanning Responses . | . . . . . . . . . . . . . Cargo Convoy Interrupts . | . . . . . . . . . . . . . Stealth | -11 -10 -10 -9 -8 -7 -6 -5 -4 -4 -4 -3 -2 --------- Run | Yrd Mat Min Mat Mat Fac Fac Fac Fac Upp Upp Res Res Distress Signals 9 | . . . 2 4 . 1 . 1 . . 1 . Communications Jammed . | . . . . . . . . . . . . . Distress Signals . | . . . . . . . . . . . . . Times Spotted 109 | . . . 14 21 1 4 4 26 3 . 18 18 Peak Tracking Total 9 | . . . 6 9 1 2 2 4 2 . 8 7 Tactical Retreats 12 | . . . 2 4 . . 1 2 2 . . 1 Traps | -11 -10 -10 -9 -8 -7 -6 -5 -4 -4 -4 -3 -2 ------- Run | Yrd Mat Min Mat Mat Fac Fac Fac Fac Upp Upp Res Res Traps Triggered 7 | . 1 . 2 2 . . . . . . 1 1 Indirectly . | . . . . . . . . . . . . . Trap Hack Attempts . | . . . . . . . . . . . . . Triggered . | . . . . . . . . . . . . . Disarmed . | . . . . . . . . . . . . . Reprogrammed . | . . . . . . . . . . . . . Reused . | . . . . . . . . . . . . . Traps Extracted . | . . . . . . . . . . . . . Installed . | . . . . . . . . . . . . . Triggered . | . . . . . . . . . . . . . Machines | -11 -10 -10 -9 -8 -7 -6 -5 -4 -4 -4 -3 -2 ---------- Run | Yrd Mat Min Mat Mat Fac Fac Fac Fac Upp Upp Res Res Machines Disabled 1 | . . . . . . . . 1 . . . . Max in Single Turn 1 | . . . . . . . . 1 . . . . Machines Repaired . | . . . . . . . . . . . . . Machines Dismantled . | . . . . . . . . . . . . . Machines Sabotaged . | . . . . . . . . . . . . . Overloaded Fab Kills . | . . . . . . . . . . . . . Hacking | -11 -10 -10 -9 -8 -7 -6 -5 -4 -4 -4 -3 -2 --------- Run | Yrd Mat Min Mat Mat Fac Fac Fac Fac Upp Upp Res Res Machines Accessed 4 | . . . . 2 1 . 1 . . . . . Terminals 2 | . . . . 2 . . . . . . . . Fabricators . | . . . . . . . . . . . . . Repair Stations 1 | . . . . . 1 . . . . . . . Recycling Units . | . . . . . . . . . . . . . Scanalyzers 1 | . . . . . . . 1 . . . . . Garrison Access . | . . . . . . . . . . . . . Total Hacks 12 | . . . . 3 5 . 4 . . . . . Successful 9 | . . . . 3 3 . 3 . . . . . Failed 3 | . . . . . 2 . 1 . . . . . Catastrophic . | . . . . . . . . . . . . . Database Lockouts . | . . . . . . . . . . . . . Manual . | . . . . . . . . . . . . . Terminals 3 | . . . . 3 . . . . . . . . Fabricators . | . . . . . . . . . . . . . Repair Stations 5 | . . . . . 5 . . . . . . . Recycling Units . | . . . . . . . . . . . . . Scanalyzers 4 | . . . . . . . 4 . . . . . Garrison Access . | . . . . . . . . . . . . . Terminal Hacks 3 | . . . . 3 . . . . . . . . Record 2 | . . . . 2 . . . . . . . . Alert Level 1 | . . . . 1 . . . . . . . . Fabricator Hacks . | . . . . . . . . . . . . . Repair Station Hacks 3 | . . . . . 3 . . . . . . . Scan Component 2 | . . . . . 2 . . . . . . . Repair 1 | . . . . . 1 . . . . . . . Recycling Unit Hacks . | . . . . . . . . . . . . . Scanalyzer 3 | . . . . . . . 3 . . . . . Insert Component 1 | . . . . . . . 1 . . . . . Analyze 1 | . . . . . . . 1 . . . . . Retrieve Study 1 | . . . . . . . 1 . . . . . Garrison Access Hacks . | . . . . . . . . . . . . . Unauthorized Hacks . | . . . . . . . . . . . . . Terminals . | . . . . . . . . . . . . . Fabricators . | . . . . . . . . . . . . . Repair Stations . | . . . . . . . . . . . . . Recycling Units . | . . . . . . . . . . . . . Scanalyzers . | . . . . . . . . . . . . . Garrison Access . | . . . . . . . . . . . . . Data Cores Recovered 1 | . . . . . . 1 . . . . . . Used . | . . . . . . . . . . . . . Hacking Detections 1 | . . . . . 1 . . . . . . . Full Trace Events 1 | . . . . . 1 . . . . . . . Feedback Events . | . . . . . . . . . . . . . Feedback Blocked . | . . . . . . . . . . . . . Robot Schematics Acquired . | . . . . . . . . . . . . . Robots Built . | . . . . . . . . . . . . . Authchips . | . . . . . . . . . . . . . Time . | . . . . . . . . . . . . . Total Robot Build Rating . | . . . . . . . . . . . . . Part Schematics Acquired 1 | . . . . . . . 1 . . . . . Parts Built . | . . . . . . . . . . . . . Authchips . | . . . . . . . . . . . . . Time . | . . . . . . . . . . . . . Total Part Build Rating . | . . . . . . . . . . . . . Part Studies Acquired 1 | . . . . . . . 1 . . . . . Parts Repaired 1 | . . . . . 1 . . . . . . . Time 53 | . . . . . 53 . . . . . . . Parts Recycled . | . . . . . . . . . . . . . Recycled Matter . | . . . . . . . . . . . . . Retrieved Matter . | . . . . . . . . . . . . . Retrieved Components . | . . . . . . . . . . . . . Parts Scanalyzed 1 | . . . . . . . 1 . . . . . Part Schematics Acquired 1 | . . . . . . . 1 . . . . . Parts Damaged . | . . . . . . . . . . . . . Bothacking | -11 -10 -10 -9 -8 -7 -6 -5 -4 -4 -4 -3 -2 ------------ Run | Yrd Mat Min Mat Mat Fac Fac Fac Fac Upp Upp Res Res Used RIF Installer . | . . . . . . . . . . . . . Robots Hacked . | . . . . . . . . . . . . . Non-combat . | . . . . . . . . . . . . . Combat . | . . . . . . . . . . . . . Robot Hacks Applied . | . . . . . . . . . . . . . Relay Couplers Released . | . . . . . . . . . . . . . Fabnet Peak Effective % . | . . . . . . . . . . . . . Robots Rewired . | . . . . . . . . . . . . . Allies Hacked . | . . . . . . . . . . . . . Hacks Repelled . | . . . . . . . . . . . . . Allies | -11 -10 -10 -9 -8 -7 -6 -5 -4 -4 -4 -3 -2 -------- Run | Yrd Mat Min Mat Mat Fac Fac Fac Fac Upp Upp Res Res Total Allies . | . . . . . . . . . . . . . Largest Group . | . . . . . . . . . . . . . Highest-Rated Group . | . . . . . . . . . . . . . Highest-Rated Ally . | . . . . . . . . . . . . . Total Orders . | . . . . . . . . . . . . . Ally Attacks . | . . . . . . . . . . . . . Total Damage . | . . . . . . . . . . . . . Kills . | . . . . . . . . . . . . . Allies Corrupted . | . . . . . . . . . . . . . Allies Melted . | . . . . . . . . . . . . . Intel | -11 -10 -10 -9 -8 -7 -6 -5 -4 -4 -4 -3 -2 ------- Run | Yrd Mat Min Mat Mat Fac Fac Fac Fac Upp Upp Res Res Active Infowar (turns) 1813 | . . . . 133 290 481 388 521 . . . . Optics 1813 | . . . . 133 290 481 388 521 . . . . IFF 1251 | . . . . . . 360 388 503 . . . . ECM 8 | . . . . . 1 7 . . . . . . Robot Analysis Total . | . . . . . . . . . . . . . Derelict Logs Recovered 2 | . . . . . . . . . 2 . . . Drone Launches . | . . . . . . . . . . . . . Drone Recoveries . | . . . . . . . . . . . . . Exploration | -11 -10 -10 -9 -8 -7 -6 -5 -4 -4 -4 -3 -2 ------------- Run | Yrd Mat Min Mat Mat Fac Fac Fac Fac Upp Upp Res Res Turns Passed 5165 | 60 127 411 551 896 290 481 388 727 274 56 614 290 Spaces Moved 4774 | 49 104 343 351 649 312 372 411 641 465 111 678 288 Core 127 | 17 . . . 59 . . . . . . . 51 Treads 86 | . . . . 72 . . . . . . . 14 Legs 974 | 32 104 343 351 144 . . . . . . . . Wheels . | . . . . . . . . . . . . . Hover 2460 | . . . . . . . 342 641 465 111 678 223 Flight 1127 | . . . . 374 312 372 69 . . . . . Fastest Speed 26 | 50 120 120 120 26 26 26 50 41 50 50 50 50 Average Speed 63 | 95 120 120 120 64 33 34 60 50 50 50 50 61 Slowest Speed 350 | 120 120 120 120 350 109 109 150 94 50 50 54 350 Overloaded Moves . | . . . . . . . . . . . . . Propulsion Burnouts . | . . . . . . . . . . . . . Robots Hopped 4 | . . . . 1 . 3 . . . . . . Potential Cave-ins . | . . . . . . . . . . . . . Cave-ins Triggered . | . . . . . . . . . . . . . Exploration Rate (%) 23 | 3 17 63 25 44 7 10 14 19 66 13 15 6 Regions Visited 12 Branch Regions 3 Pre-discovered Areas . | . . . . . . . . . . . . . Known Exits Taken . | . . . . . . . . . . . . . Unknown Exits Taken 12 | 1 1 1 1 1 1 1 1 1 1 1 1 . Scrap Searched 3 | . . . . . . . . . 3 . . . Spaces Dug 5 | . . . . . . . . . . . . 5 Terrain Destroyed 23 | . . . . 3 . . 4 4 1 . 4 7 Melee . | . . . . . . . . . . . . . Projectile 16 | . . . . . . . . 4 1 . 4 7 AOE 7 | . . . . 3 . . 4 . . . . . Terrain Rammed . | . . . . . . . . . . . . . Walls Destroyed . | . . . . . . . . . . . . . Machines Disabled . | . . . . . . . . . . . . . Actions | -11 -10 -10 -9 -8 -7 -6 -5 -4 -4 -4 -3 -2 --------- Run | Yrd Mat Min Mat Mat Fac Fac Fac Fac Upp Upp Res Res Total 6647 | 62 106 342 438 1094 498 714 541 986 497 110 880 379 Wait 1511 | . . . 34 333 180 333 103 282 29 . 160 57 Move 4754 | 48 103 342 350 646 311 365 410 640 464 110 677 288 Hop 4 | . . . . 1 . 3 . . . . . . Pick Up 51 | 8 2 . 11 28 1 . 1 . . . . . Fast Attach 50 | . . . 1 9 1 2 10 13 . . 6 8 Attach 61 | 6 1 . 6 31 2 3 5 2 . . 1 4 Detach 32 | . . . 4 13 1 4 3 4 . . 3 . Swap . | . . . . . . . . . . . . . Drop 44 | . . . 8 15 2 . 5 13 . . . 1 Fire 135 | . . . 24 18 . 4 4 31 4 . 33 17 Melee . | . . . . . . . . . . . . . Ram 5 | . . . . . . . . 1 . . . 4 Kick . | . . . . . . . . . . . . . Crush . | . . . . . . . . . . . . . Escape Stasis . | . . . . . . . . . . . . . Rewire . | . . . . . . . . . . . . . Trap . | . . . . . . . . . . . . . Miscellaneous . | . . . . . . . . . . . . . Route ------- -11/Scrapyard -10/Materials -10/Mines (discovered 2 exits: *Mat x2) -9/Materials -8/Materials -7/Factory -6/Factory -5/Factory -4/Factory -4/Upper Caves -4/Upper Caves -3/Research (discovered 2 exits: [*Res] / Qua) -2/Research History --------- Turn | Location | Event 10 | -11/Scrapyard | Discovered new exit (range 15) 61 | -11/Scrapyard | Entered Materials 107 | -10/Materials | Discovered new exit (range 7) 188 | -10/Materials | Entered Mines 246 | -10/Mines | Discovered new exit (range 8) 288 | -10/Mines | Discovered new exit (range 13) 304 | -10/Mines | Build established: Mutant 599 | -10/Mines | Entered Materials 599 | -9/Materials | Evolved 2 slots: Propulsion x2 1115 | -9/Materials | Discovered new exit (range 15) 1150 | -9/Materials | Entered another Materials area 1150 | -8/Materials | Evolved 2 slots: Utility x2 1371 | -8/Materials | Core integrity fell below 50% 1399 | -8/Materials | Lost 14 parts (2p3n3u6w) 1426 | -8/Materials | Core integrity fell below 20% 1939 | -8/Materials | Met 7R-MNS 1948 | -8/Materials | Discovered new exit (range 18) 1959 | -8/Materials | Build established: Sprinter 2046 | -8/Materials | Entered Factory 2046 | -7/Factory | Evolved 2 slots: Power x1, Propulsion x1 2047 | -7/Factory | Caught up to 7R-MNS 2131 | -7/Factory | Repaired Broken Cesium-ion Thruster? 2327 | -7/Factory | Discovered new exit (range 6) 2336 | -7/Factory | Entered another Factory area 2336 | -6/Factory | Evolved 2 slots: Propulsion x1, Utility x1 2337 | -6/Factory | Caught up to 7R-MNS 2501 | -6/Factory | Discovered new exit (range 10) 2817 | -6/Factory | Entered another Factory area 2817 | -5/Factory | Evolved 2 slots: Propulsion x1, Utility x1 2818 | -5/Factory | Caught up to 7R-MNS 3048 | -5/Factory | Build established: Mutant 3192 | -5/Factory | Discovered new exit (range 7) 3205 | -5/Factory | Entered another Factory area 3205 | -4/Factory | Evolved 2 slots: Power x1, Utility x1 3206 | -4/Factory | Caught up to 7R-MNS 3892 | -4/Factory | Discovered new exit (range 11) 3931 | -4/Factory | 7R-MNS successfully reached the Upper Caves 3932 | -4/Factory | Entered Upper Caves 4010 | -4/Upper Caves | Learned location of 1 exit from Research 4042 | -4/Upper Caves | Attracted the attention of an 0b10 checkpoint 4116 | -4/Upper Caves | Discovered new exit (range 12) 4152 | -4/Upper Caves | Found DCF Scrap (13 items) 4206 | -4/Upper Caves | Entered another Upper Caves area 4218 | -4/Upper Caves | Discovered new exit (range 11) 4262 | -4/Upper Caves | Entered Research 4262 | -3/Research | Evolved 2 slots: Utility x2 4263 | -3/Research | Identified exit to Quarantine 4578 | -3/Research | Garrison activated, responded to threat 4830 | -3/Research | Discovered new exit (range 14) 4876 | -3/Research | Entered another Research area 4876 | -2/Research | Evolved 2 slots: Utility x1, Weapon x1 5078 | -2/Research | Core integrity fell below 50% 5090 | -2/Research | Core integrity fell below 20% 5121 | -2/Research | Lost 19 parts (2p5n9u3w) 5163 | -2/Research | Released all parts (6) 5166 | -2/Research | Destroyed by S-43 Plague with Heavy Machine Gun Last Messages --------------- Railgun destroyed. Imp. Matter Compressor destroyed. Graphene Brace destroyed. Disruptor Cannon destroyed. Critical hit (Burn: +37). Gyrokinetic Inverter+ destroyed. Slammed into G-73 Enforcer. Destabilizing: System corrupted (+1). Gyrokinetic Inverter+ destroyed. Slammed into G-73 Enforcer. System corrupted: Matter fused (-9). Acquired Quantum Reactor. Acquired Arm. Medium Treads. Critical hit (Burn: +37). Hvy. Particle Gun destroyed. Quantum Reactor destroyed. Released Arm. Medium Treads. Released Linear Accelerator. [Achievement: Live, Flee, And Rebuild] [Achievement: 5k Club] Map ----- +----------------------------------------------------+ | ?????????????????????????????????????????????????? | | ?????????????????????????????????????????????????? | | ?????????????????????????????????????????????????? | | ?????????????????????????????????????????????????? | | ?????????????????????????????????????????????????? | | ?????????????????????????????????????????????????? | | ?????????????????????????????????????????????????? | | ?????????????????????????????????????????????????? | | ?????????????????????????????????????????????????? | | ?????????????????????????????????????????????????? | | ??????????????????????? ???????????????????????? | | ?????????????????????# ???????????????????????? | | ?????????????????????# s???????????????????????? | | ?????????????????????# hh???????????????????????? | | ?????????????????????#ss s???????????????????????? | | ?????????????????????# ???????????????????????? | | ?????????????????????# ???????????????????????? | | ?????????????????????# #??????????????????????? | | ?????????????????????# #???????????????###????? | | ?????????????????????+ +???????????????# #????? | | ?????????????????????# k #################"###??? | | ?????????????????????# # # #??? | | ?????????????????????# # # #??? | | ?????????????????????# # # ###? | | ?????????????????????# # "" "" " " #? | | ?????????????????????# @# ""T"" # ###? | | ?????????????????????+ + """= # #??? | | ?????????????????????# # === # #??? | | ?????????????????????# # ]= # ^ [ #??? | | ?????????????????????# #############/########? | | ?????????????????????# #? | | ?????????????????????# # | | ?????????????????????# # | | ?????????????????????# + | | ?????????????????????########### T######### # | | ???????????????????????????????##?????????# #] | | ?????????????????????###################### #? | | ?????????????????????# #? | | ?????????????????????# #?? | | ?????????????????????# #?? | | ?????????????????????# #?? | | ?????????????????????# ######################?? | | ?????????????????????# ########???????????????? | | ?????????????????????# # #???????????????? | | ?????????????????????# # #???????????????? | | ?????????????????????+ # % #???????????????? | | ?????????????????????# #% ]#???????????????? | | ?????????????????????# %/ ! ##########??????? | | ?????????????????????# # # #??????? | | ?????????????????????# # # = #??????? | +----------------------------------------------------+ Best States ------------- Heat Dissipation 87 Energy Generation 42 Energy Capacity 530 Matter Stores 377 Matter Capacity 600 Sight Range 20 Terrain Scan Density 110 ECM Strength 2 Power Amplification 20 Armor Coverage 225 Resistance: EM 25 Evasion (%) 67 Recoil Reduction 5 Matter Filtering 50 Particle Charging 22 Item Schematics ----------------- Gyrokinetic Inverter | -5/Factory | Scanalyzed Robot Schematics ------------------ None Fabricated ------------ Nothing Repaired ---------- Cesium-ion Thruster | 4% | -7/Factory | Broken Studied --------- Gyrokinetic Inverter | -5/Factory | Hacked Alien Tech Used ----------------- None Achievements -------------- 5k Club Dangerous Findings Escorted To Danger Heavy Suspicion Hydra I Laugh At Your Crits Item+ Leap Before You Look Live, Flee, And Rebuild Made in Tau Ceti IV Overwhelming Please Form A Line Power Corrupts Respectable Loadout Serviceable Loadout Troublemaker Challenges ------------ None Game ------ Seed DeliveryNullWarhead Manual? 0 Play Time 02:50:44 Cumulative 6.0 hours Start 2026.04.22 @ 22:01:42 End 2026.04.23 @ 01:40:05 Sessions 2 Manual Loads 0 Difficulty Rogue Special Mode None Game No. 6 Rogue 6 Adventurer 0 Explorer 0 Win Type - Total 0 Types 0/0/0/0/0/0/0/0/0/0 Lore% 6 Gallery% 6 Achievement% 8 Wizard Run 0 Options --------- Layout 0 ASCII 0 Keyboard 1 Movement Numpad Keybinds 0 Fullscreen 1 Font 18/SmallcapsGlow Map View 76x50 Zoom Use 0% Tactical HUD 0 Map Filters NONE Filters NONE Steam 1 RUN: 8dfeac86-8fb6-4084-92ff-8a0ede97f064